[Event "ESP-ch Rapid 2018"]
[Site "Linares"]
[Date "2018.08.19"]
[Round "7"]
[White "Fernandez Garcia, Jose Miguel"]
[Black "Centron Antuna, Daniel"]
[Result "0-1"]
[ECO "B32"]
[WhiteElo "2404"]
[BlackElo "2231"]
[Annotator "NA"]
[PlyCount "87"]
[EventDate "2018.08.19"]
[EventType "team-tourn"]
[EventCountry "ESP"]
[SourceTitle "playchess.com"]
[Source "ChessBase"]
[SourceQuality "1"]
[TimeControl "900+5"]

1. e4 {[%emt 0:00:00]} c5 {[%emt 0:00:00]} 2. Ne2 {[%emt 0:00:03]} Nc6 {[%emt 0:00:02]} 3. d4 {[%emt 0:00:04]} cxd4 {[%emt 0:00:02]} 4. Nxd4 {[%emt 0:00:01]} e5 {[%emt 0:00:01]} 5. Nb5 {[%emt 0:00:06]} a6 {[%emt 0:00:02]} 6. Nd6+ {[%emt 0:00:02]} Bxd6 {[%emt 0:00:02]} 7. Qxd6 {[%emt 0:00:01]} Qf6 {[%emt 0:00:01]} 8. Qd1 {[%emt 0:00:02]} Qg6 {[%emt 0:00:02]} 9. Nc3 {[%emt 0:00:02]} d5 {[%emt 0:00:42]} 10. Nxd5 {[%emt 0:00:31]} Qxe4+ {[%emt 0:00:03]} 11. Be3 {[%emt 0:01:09]} Nd4 {[%emt 0:01:15]} 12. Nc7+ {[%emt 0:00:15]} Ke7 {[%emt 0:00:02]} 13. Rc1 {[%emt 0:02:09]} Bg4 {[%emt 0:01:28]} 14. Qd3 {[%emt 0:00:57]} Qxd3 {[%emt 0:00:02]} 15. Bxd3 {[%emt 0:00:16]} Rd8 {[%emt 0:00:10]} 16. c4 {[%emt 0:09:06]} Nf6 {[%emt 0:01:01]} 17. Bg5 {[%emt 0:01:17]} Nf3+ {[%emt 0:01:34]} 18. gxf3 {[%emt 0:00:01]} Bxf3 {[%emt 0:00:02]} 19. Kd2 {[%emt 0:00:01]} Bxh1 {[%emt 0:00:11]} 20. Rxh1 {[%emt 0:00:09]} e4 {[%emt 0:00:36]} 21. Nd5+ {[%emt 0:00:21]} Rxd5 {[%emt 0:00:02]} 22. cxd5 {[%emt 0:00:01]} exd3 {[%emt 0:00:02]} 23. Kxd3 {[%emt 0:00:08]} Kd6 {[%emt 0:00:26]} 24. Bxf6 {[%emt 0:00:12]} gxf6 {[%emt 0:00:02]} 25. Rg1 {[%emt 0:00:04]} Kxd5 {[%emt 0:00:13]} 26. Rg7 {[%emt 0:00:02]} Ke6 {[%emt 0:00:02]} 27. Rg4 {[%emt 0:00:09]} Rd8+ {[%emt 0:00:06]} 28. Ke2 {[%emt 0:00:01]} Rc8 {[%emt 0:00:02]} 29. Kd2 {[%emt 0:00:02]} Rc5 {[%emt 0:00:06]} 30. Rh4 {[%emt 0:00:05]} h5 {[%emt 0:00:02]} 31. Rb4 {[%emt 0:00:12]} b5 {[%emt 0:00:04]} 32. Rh4 {[%emt 0:00:02]} a5 {[%emt 0:00:07]} 33. a3 {[%emt 0:00:05]} Rf5 {[%emt 0:00:05]} 34. Ke3 {[%emt 0:00:08]} Kd6 {[%emt 0:00:08]} 35. Rd4+ {[%emt 0:00:05]} Kc6 {[%emt 0:00:14]} 36. Rh4 {[%emt 0:00:03]} Kc5 {[%emt 0:00:05]} 37. b4+ {[%emt 0:00:03]} axb4 {[%emt 0:00:04]} 38. axb4+ Kd6 {[%emt 0:00:05]} 39. Rd4+ {[%emt 0:00:06]} Ke6 {[%emt 0:00:02]} 40. Rh4 {[%emt 0:00:02]} Rg5 {[%emt 0:00:11]} 41. f3 {[%emt 0:00:12]} Ke7 {[%emt 0:00:21]} 42. Kd3 {[%emt 0:00:09]} Re5 {[%emt 0:00:35]} 43. Rd4 {[%emt 0:00:05]} Kf8 {[%emt 0:00:37]} 44. Rd5 {[%emt 0:00:11]} 0-1

[Event "ESP-ch Rapid 2018"]
[Site "Linares"]
[Date "2018.08.19"]
[Round "7"]
[White "Camacho Collados, Marcos"]
[Black "Jimenez Martinez, Jose Vicente"]
[Result "0-1"]
[ECO "B08"]
[WhiteElo "2393"]
[BlackElo "2243"]
[Annotator "NA"]
[PlyCount "75"]
[EventDate "2018.08.19"]
[EventType "team-tourn"]
[EventCountry "ESP"]
[SourceTitle "playchess.com"]
[Source "ChessBase"]
[SourceQuality "1"]
[TimeControl "900+5"]

1. d4 {[%emt 0:00:00]} g6 {[%emt 0:00:00]} 2. e4 {[%emt 0:00:02]} d6 {[%emt 0:00:00]} 3. Nf3 {[%emt 0:00:08]} Bg7 {[%emt 0:00:00]} 4. Nc3 {[%emt 0:00:09]} Nf6 {[%emt 0:00:01]} 5. h3 {[%emt 0:00:02]} O-O {[%emt 0:00:07]} 6. Be3 {[%emt 0:00:01]} b6 {[%emt 0:00:33]} 7. Bd3 {[%emt 0:00:23]} Ba6 {[%emt 0:00:07]} 8. Bxa6 {[%emt 0:00:44]} Nxa6 {[%emt 0:00:01]} 9. Qe2 {[%emt 0:00:11]} Qc8 {[%emt 0:00:25]} 10. O-O-O {[%emt 0:00:51]} c5 {[%emt 0:00:12]} 11. e5 {[%emt 0:00:25]} Nd7 {[%emt 0:02:35]} 12. Nd5 {[%emt 0:00:40]} Re8 {[%emt 0:00:10]} 13. Bg5 {[%emt 0:02:24]} f6 {[%emt 0:01:22]} 14. Bh4 {[%emt 0:00:14]} cxd4 {[%emt 0:01:34]} 15. exd6 {[%emt 0:00:52]} exd6 {[%emt 0:01:02]} 16. Ne7+ {[%emt 0:00:46]} Kf8 {[%emt 0:00:02]} 17. Rhe1 {[%emt 0:01:27]} Qd8 {[%emt 0:00:49]} 18. Qxa6 {[%emt 0:01:37]} Rxe7 {[%emt 0:00:02]} 19. Nxd4 {[%emt 0:00:09]} Nc5 {[%emt 0:00:06]} 20. Qb5 {[%emt 0:00:38]} a6 {[%emt 0:01:28]} 21. Qc6 {[%emt 0:00:38]} Rc8 {[%emt 0:00:38]} 22. Rxe7 {[%emt 0:01:07]} Kxe7 {[%emt 0:00:43]} 23. Qd5 {[%emt 0:00:35]} Qc7 {[%emt 0:01:03]} 24. b4 {[%emt 0:00:21]} Nd7 {[%emt 0:00:09]} 25. f4 {[%emt 0:00:45]} Qc4 {[%emt 0:01:34]} 26. Re1+ {[%emt 0:00:01]} Ne5 {[%emt 0:00:01]} 27. Qxc4 {[%emt 0:00:21]} Rxc4 {[%emt 0:00:01]} 28. fxe5 {[%emt 0:00:28]} Bh6+ {[%emt 0:00:07]} 29. Kb2 {[%emt 0:00:09]} Rxd4 {[%emt 0:02:03]} 30. Bxf6+ {[%emt 0:00:03]} Ke6 {[%emt 0:00:10]} 31. Re2 {[%emt 0:00:54]} Rxb4+ {[%emt 0:00:03]} 32. Kc3 {[%emt 0:00:01]} Rb5 {[%emt 0:00:03]} 33. Bh8 {[%emt 0:00:20]} dxe5 {[%emt 0:00:02]} 34. Rf2 {[%emt 0:00:03]} Bf4 {[%emt 0:00:04]} 35. g3 {[%emt 0:00:12]} Bxg3 {[%emt 0:00:08]} 36. Rf6+ {[%emt 0:00:02]} Kd5 {[%emt 0:00:02]} 37. Rf7 {[%emt 0:00:07]} h6 {[%emt 0:00:13]} 38. Rf8 0-1

[Event "ESP-ch Rapid 2018"]
[Site "Linares"]
[Date "2018.08.19"]
[Round "7"]
[White "Suarez Uriel, Adrian"]
[Black "Redondo Flores, David"]
[Result "1-0"]
[ECO "B90"]
[WhiteElo "2391"]
[BlackElo "1971"]
[Annotator "NA"]
[PlyCount "77"]
[EventDate "2018.08.19"]
[EventType "team-tourn"]
[EventCountry "ESP"]
[SourceTitle "playchess.com"]
[Source "ChessBase"]
[SourceQuality "1"]
[TimeControl "900+5"]

1. e4 {[%emt 0:00:00]} c5 {[%emt 0:00:00]} 2. Nf3 {[%emt 0:00:00]} d6 {[%emt 0:00:00]} 3. d4 {[%emt 0:00:00]} cxd4 {[%emt 0:00:00]} 4. Nxd4 {[%emt 0:00:01]} Nf6 {[%emt 0:00:01]} 5. Nc3 {[%emt 0:00:02]} a6 {[%emt 0:00:01]} 6. h3 {[%emt 0:00:03]} e5 {[%emt 0:00:12]} 7. Nb3 {[%emt 0:00:01]} b5 {[%emt 0:00:02]} 8. f4 {[%emt 0:00:10]} Bb7 {[%emt 0:03:10]} 9. fxe5 {[%emt 0:00:10]} Nxe4 {[%emt 0:00:13]} 10. Nxe4 {[%emt 0:00:11]} Bxe4 {[%emt 0:00:10]} 11. Be3 {[%emt 0:00:57]} Be7 {[%emt 0:01:40]} 12. exd6 {[%emt 0:00:26]} Bh4+ {[%emt 0:00:12]} 13. Bf2 {[%emt 0:00:02]} Bxf2+ {[%emt 0:00:06]} 14. Kxf2 {[%emt 0:00:02]} O-O {[%emt 0:00:50]} 15. Bd3 {[%emt 0:00:17]} Qb6+ {[%emt 0:00:58]} 16. Kf1 {[%emt 0:00:01]} Bg6 {[%emt 0:00:15]} 17. Qf3 {[%emt 0:00:28]} Nd7 {[%emt 0:00:11]} 18. Qd5 {[%emt 0:00:19]} Rac8 {[%emt 0:00:42]} 19. Qd4 {[%emt 0:01:38]} Bxd3+ {[%emt 0:00:10]} 20. cxd3 {[%emt 0:00:02]} Rc2 {[%emt 0:01:04]} 21. Qxb6 {[%emt 0:01:32]} Nxb6 {[%emt 0:00:01]} 22. Re1 {[%emt 0:01:49]} Rd8 {[%emt 0:01:03]} 23. Re2 {[%emt 0:00:13]} Rc6 {[%emt 0:00:22]} 24. Kf2 {[%emt 0:00:28]} Rcxd6 {[%emt 0:00:03]} 25. Rd1 {[%emt 0:00:11]} g6 {[%emt 0:00:45]} 26. Nc5 {[%emt 0:00:01]} Nd5 {[%emt 0:00:17]} 27. Kg3 {[%emt 0:00:19]} Nb4 {[%emt 0:00:16]} 28. a3 {[%emt 0:00:12]} Nc6 {[%emt 0:00:24]} 29. Kh2 {[%emt 0:01:44]} Nd4 {[%emt 0:00:06]} 30. Re7 {[%emt 0:00:05]} Rc6 {[%emt 0:00:43]} 31. b4 {[%emt 0:00:08]} a5 {[%emt 0:00:33]} 32. Rf1 {[%emt 0:00:04]} f5 {[%emt 0:00:09]} 33. Rb7 {[%emt 0:00:10]} Re8 {[%emt 0:00:33]} 34. Rf4 {[%emt 0:00:27]} Nc2 {[%emt 0:00:14]} 35. Rxb5 {[%emt 0:00:07]} axb4 {[%emt 0:00:06]} 36. axb4 {[%emt 0:00:01]} Kg7 {[%emt 0:00:38]} 37. Rb7+ {[%emt 0:00:03]} Kf6 {[%emt 0:00:43]} 38. Rc4 {[%emt 0:00:01]} Rd6 {[%emt 0:00:25]} 39. Rxc2 {[%emt 0:00:04]} 1-0

[Event "ESP-ch Rapid 2018"]
[Site "Linares"]
[Date "2018.08.19"]
[Round "7"]
[White "Vega Gutierrez, Sabrina"]
[Black "Cuevas Fernandez, Jose Alberto"]
[Result "1-0"]
[ECO "B85"]
[WhiteElo "2390"]
[BlackElo "2147"]
[Annotator "NA"]
[PlyCount "49"]
[EventDate "2018.08.19"]
[EventType "team-tourn"]
[EventCountry "ESP"]
[SourceTitle "playchess.com"]
[Source "ChessBase"]
[SourceQuality "1"]
[TimeControl "900+5"]

1. e4 {[%emt 0:00:00]} c5 {[%emt 0:00:00]} 2. Nf3 {[%emt 0:00:10]} e6 {[%emt 0:00:00]} 3. d4 {[%emt 0:00:01]} cxd4 {[%emt 0:00:00]} 4. Nxd4 {[%emt 0:00:03]} a6 {[%emt 0:00:00]} 5. Be2 {[%emt 0:00:03]} Qc7 {[%emt 0:00:02]} 6. O-O {[%emt 0:00:07]} Nf6 {[%emt 0:00:03]} 7. Nc3 {[%emt 0:00:02]} d6 {[%emt 0:00:07]} 8. f4 {[%emt 0:00:22]} Nbd7 {[%emt 0:00:09]} 9. Kh1 {[%emt 0:00:06]} h5 {[%emt 0:00:01]} 10. Bf3 {[%emt 0:00:49]} Rb8 {[%emt 0:00:50]} 11. a4 {[%emt 0:00:40]} b6 {[%emt 0:00:02]} 12. e5 {[%emt 0:01:09]} dxe5 {[%emt 0:01:11]} 13. fxe5 {[%emt 0:00:40]} Ng4 {[%emt 0:00:02]} 14. Bf4 {[%emt 0:02:06]} Bb7 {[%emt 0:00:28]} 15. Bxg4 {[%emt 0:00:25]} hxg4 {[%emt 0:00:10]} 16. Qxg4 {[%emt 0:00:03]} Qc4 {[%emt 0:01:03]} 17. Rad1 {[%emt 0:00:50]} Nc5 {[%emt 0:01:02]} 18. Nde2 {[%emt 0:01:54]} Nd7 {[%emt 0:01:33]} 19. Rd4 {[%emt 0:00:14]} Qc6 {[%emt 0:00:12]} 20. Rfd1 {[%emt 0:00:27]} Nc5 {[%emt 0:03:51]} 21. Bg5 {[%emt 0:00:32]} Qc7 {[%emt 0:03:30]} 22. b4 {[%emt 0:00:45]} f6 {[%emt 0:00:37]} 23. bxc5 {[%emt 0:01:30]} fxg5 {[%emt 0:01:04]} 24. Qxe6+ {[%emt 0:00:04]} Qe7 {[%emt 0:00:05]} 25. Qg6+ {[%emt 0:00:17]} 1-0

[Event "ESP-ch Rapid 2018"]
[Site "Linares"]
[Date "2018.08.19"]
[Round "7"]
[White "Campos Gambuti, Luis Maria"]
[Black "Buendia Pinar, Alvaro"]
[Result "1/2-1/2"]
[ECO "D02"]
[WhiteElo "2382"]
[BlackElo "2278"]
[Annotator "NA"]
[PlyCount "87"]
[EventDate "2018.08.19"]
[EventType "team-tourn"]
[EventCountry "ESP"]
[SourceTitle "playchess.com"]
[Source "ChessBase"]
[SourceQuality "1"]
[TimeControl "900+5"]

1. d4 {[%emt 0:00:00]} d5 {[%emt 0:00:00]} 2. Nf3 {[%emt 0:00:00]} Nf6 {[%emt 0:00:02]} 3. Bf4 {[%emt 0:00:17]} a6 {[%emt 0:01:09]} 4. e3 {[%emt 0:00:08]} Nbd7 {[%emt 0:00:04]} 5. c4 {[%emt 0:00:33]} e6 {[%emt 0:00:05]} 6. Nc3 {[%emt 0:00:04]} c6 {[%emt 0:00:18]} 7. c5 {[%emt 0:00:19]} b6 {[%emt 0:00:20]} 8. b4 {[%emt 0:00:05]} Be7 {[%emt 0:00:32]} 9. h3 {[%emt 0:00:02]} bxc5 {[%emt 0:00:42]} 10. bxc5 {[%emt 0:00:02]} Ne4 {[%emt 0:00:53]} 11. Nxe4 {[%emt 0:00:10]} dxe4 {[%emt 0:00:02]} 12. Nd2 {[%emt 0:00:02]} e5 {[%emt 0:00:08]} 13. dxe5 {[%emt 0:03:36]} Qa5 {[%emt 0:01:49]} 14. Bc4 {[%emt 0:00:19]} Nxc5 {[%emt 0:00:51]} 15. O-O {[%emt 0:00:06]} O-O {[%emt 0:00:23]} 16. Nb3 {[%emt 0:00:17]} Nxb3 {[%emt 0:00:07]} 17. axb3 {[%emt 0:00:02]} Qb6 {[%emt 0:00:08]} 18. Qh5 {[%emt 0:01:14]} c5 {[%emt 0:00:48]} 19. Rfd1 {[%emt 0:00:33]} Be6 {[%emt 0:00:12]} 20. Bg5 {[%emt 0:00:36]} Bxg5 {[%emt 0:00:15]} 21. Qxg5 {[%emt 0:00:01]} Bxc4 {[%emt 0:00:07]} 22. bxc4 {[%emt 0:00:02]} a5 {[%emt 0:00:16]} 23. Qf5 {[%emt 0:00:23]} Qg6 {[%emt 0:00:43]} 24. Qd7 {[%emt 0:00:56]} Qe6 {[%emt 0:01:56]} 25. Qb5 {[%emt 0:00:25]} Qxe5 {[%emt 0:02:24]} 26. Rxa5 {[%emt 0:00:08]} Rac8 {[%emt 0:00:05]} 27. Qb7 {[%emt 0:00:38]} Qc3 {[%emt 0:00:23]} 28. Qa6 {[%emt 0:01:27]} h6 {[%emt 0:00:19]} 29. Raa1 {[%emt 0:00:29]} Rcd8 {[%emt 0:00:53]} 30. Qb5 {[%emt 0:00:22]} Rb8 {[%emt 0:00:35]} 31. Qxc5 {[%emt 0:00:19]} Rbc8 {[%emt 0:00:01]} 32. Qd4 {[%emt 0:00:17]} Qxc4 {[%emt 0:00:17]} 33. Ra7 {[%emt 0:00:42]} Qe6 {[%emt 0:00:25]} 34. Qd5 {[%emt 0:00:17]} Qxd5 {[%emt 0:00:15]} 35. Rxd5 {[%emt 0:00:02]} Rce8 {[%emt 0:00:02]} 36. Rd4 {[%emt 0:00:05]} Re6 {[%emt 0:00:03]} 37. Raa4 {[%emt 0:00:12]} Rfe8 {[%emt 0:00:01]} 38. g4 {[%emt 0:00:10]} g6 {[%emt 0:00:09]} 39. Kg2 {[%emt 0:00:02]} Kg7 {[%emt 0:00:01]} 40. Kg3 {[%emt 0:00:01]} R8e7 {[%emt 0:00:02]} 41. h4 {[%emt 0:00:06]} Re8 {[%emt 0:00:21]} 42. Kg2 {[%emt 0:00:42]} Re5 {[%emt 0:00:15]} 43. Kg3 R5e6 44. Kg2 {[%emt 0:00:15]} 1/2-1/2

[Event "ESP-ch Rapid 2018"]
[Site "Linares"]
[Date "2018.08.19"]
[Round "7"]
[White "Domingo Nunez, Alejandro"]
[Black "Tejedor Fuente, Enrique"]
[Result "0-1"]
[ECO "B11"]
[WhiteElo "2373"]
[BlackElo "2408"]
[Annotator "NA"]
[PlyCount "118"]
[EventDate "2018.08.19"]
[EventType "team-tourn"]
[EventCountry "ESP"]
[SourceTitle "playchess.com"]
[Source "ChessBase"]
[SourceQuality "1"]
[TimeControl "900+5"]

1. e4 {[%emt 0:00:00]} c6 {[%emt 0:00:38]} 2. Nf3 {[%emt 0:00:04]} d5 {[%emt 0:00:02]} 3. Nc3 {[%emt 0:00:00]} Bg4 {[%emt 0:00:02]} 4. h3 {[%emt 0:00:01]} Bxf3 {[%emt 0:00:06]} 5. Qxf3 {[%emt 0:00:02]} e6 {[%emt 0:00:05]} 6. d3 {[%emt 0:00:01]} Nd7 {[%emt 0:00:13]} 7. Bd2 {[%emt 0:00:02]} Bd6 {[%emt 0:00:04]} 8. d4 {[%emt 0:01:06]} Ne7 {[%emt 0:00:31]} 9. Bd3 {[%emt 0:00:16]} Qb6 {[%emt 0:00:15]} 10. e5 {[%emt 0:00:23]} Bc7 {[%emt 0:03:05]} 11. Qg4 {[%emt 0:00:05]} h5 {[%emt 0:00:42]} 12. Qh4 {[%emt 0:01:24]} c5 {[%emt 0:00:54]} 13. dxc5 {[%emt 0:02:26]} Nxc5 {[%emt 0:00:51]} 14. Bb5+ {[%emt 0:06:10]} Kf8 {[%emt 0:00:01]} 15. Bg5 {[%emt 0:01:13]} Nf5 {[%emt 0:02:09]} 16. Qb4 {[%emt 0:00:01]} a6 {[%emt 0:01:44]} 17. O-O-O {[%emt 0:00:20]} axb5 {[%emt 0:00:54]} 18. g4 {[%emt 0:00:00]} Nh6 {[%emt 0:01:28]} 19. Be3 {[%emt 0:00:14]} Kg8 {[%emt 0:00:51]} 20. Bxc5 Qc6 21. f4 {[%emt 0:00:34]} Ba5 {[%emt 0:00:31]} 22. Qa3 {[%emt 0:01:17]} Kh7 {[%emt 0:00:02]} 23. Bb4 {[%emt 0:00:10]} Bb6 {[%emt 0:00:32]} 24. Qb3 {[%emt 0:00:01]} Be3+ {[%emt 0:00:22]} 25. Kb1 {[%emt 0:00:06]} Bxf4 {[%emt 0:00:01]} 26. Bd6 {[%emt 0:00:30]} Rhc8 {[%emt 0:00:49]} 27. Rhf1 {[%emt 0:00:35]} Bg5 28. Rf3 {[%emt 0:00:08]} hxg4 {[%emt 0:00:17]} 29. hxg4 Qc4 {[%emt 0:00:06]} 30. Nxb5 {[%emt 0:00:05]} Qxg4 {[%emt 0:00:08]} 31. Qd3+ {[%emt 0:00:03]} Qe4 {[%emt 0:00:02]} 32. Rh1 {[%emt 0:00:07]} Qxd3 {[%emt 0:00:06]} 33. cxd3 {[%emt 0:00:01]} Kg8 {[%emt 0:00:06]} 34. Rg1 {[%emt 0:00:01]} Bd8 {[%emt 0:00:05]} 35. Rfg3 {[%emt 0:00:09]} Nf5 {[%emt 0:00:01]} 36. Rh3 {[%emt 0:00:00]} Ra5 {[%emt 0:00:03]} 37. Rgh1 {[%emt 0:00:04]} Nh6 {[%emt 0:00:02]} 38. Nd4 {[%emt 0:00:04]} Ra4 {[%emt 0:00:02]} 39. Nb3 {[%emt 0:00:18]} b6 {[%emt 0:00:13]} 40. Nd2 {[%emt 0:00:10]} Rc6 {[%emt 0:00:07]} 41. Ba3 {[%emt 0:00:06]} Bc7 {[%emt 0:00:05]} 42. Nf3 {[%emt 0:00:01]} Rf4 {[%emt 0:00:06]} 43. Be7 {[%emt 0:00:01]} Rxf3 {[%emt 0:00:08]} 44. Rxf3 Bxe5 45. Bg5 {[%emt 0:00:04]} Nf5 {[%emt 0:00:01]} 46. Rfh3 f6 47. Rh8+ {[%emt 0:00:02]} Kf7 {[%emt 0:00:01]} 48. Bd2 {[%emt 0:00:04]} Rc7 {[%emt 0:00:17]} 49. Rb8 {[%emt 0:00:08]} Rc6 {[%emt 0:00:10]} 50. Rb7+ {[%emt 0:00:01]} Kg8 {[%emt 0:00:05]} 51. Rc1 {[%emt 0:00:08]} Rxc1+ {[%emt 0:00:04]} 52. Kxc1 {[%emt 0:00:04]} Bd4 {[%emt 0:00:03]} 53. a4 {[%emt 0:00:19]} g5 {[%emt 0:00:00]} 54. a5 {[%emt 0:00:12]} bxa5 {[%emt 0:00:01]} 55. Bxa5 {[%emt 0:00:01]} g4 {[%emt 0:00:02]} 56. Bb6 {[%emt 0:00:11]} g3 {[%emt 0:00:11]} 57. Bc7 {[%emt 0:00:04]} e5 {[%emt 0:00:08]} 58. Rb8+ {[%emt 0:00:03]} Kg7 {[%emt 0:00:04]} 59. Bd6 {[%emt 0:00:09]} Nxd6 {[%emt 0:00:05]} 0-1

[Event "ESP-ch Rapid 2018"]
[Site "Linares"]
[Date "2018.08.19"]
[Round "7"]
[White "Lianes Garcia, Marcos"]
[Black "Estremera Panos, Sergio"]
[Result "1-0"]
[ECO "B20"]
[WhiteElo "2340"]
[BlackElo "2337"]
[Annotator "NA"]
[PlyCount "105"]
[EventDate "2018.08.19"]
[EventType "team-tourn"]
[EventCountry "ESP"]
[SourceTitle "playchess.com"]
[Source "ChessBase"]
[SourceQuality "1"]
[TimeControl "900+5"]

1. e4 {[%emt 0:00:00]} c5 {[%emt 0:00:00]} 2. g3 {[%emt 0:00:00]} Nc6 {[%emt 0:00:02]} 3. Bg2 {[%emt 0:00:00]} g6 {[%emt 0:00:08]} 4. Ne2 {[%emt 0:00:00]} Bg7 {[%emt 0:00:02]} 5. c3 {[%emt 0:00:01]} e5 {[%emt 0:00:15]} 6. O-O {[%emt 0:00:07]} Nge7 {[%emt 0:00:02]} 7. d3 {[%emt 0:00:07]} d5 {[%emt 0:00:35]} 8. exd5 {[%emt 0:00:51]} Nxd5 {[%emt 0:00:02]} 9. Na3 {[%emt 0:02:12]} O-O {[%emt 0:00:05]} 10. Nc2 {[%emt 0:00:41]} Re8 {[%emt 0:02:06]} 11. d4 {[%emt 0:01:24]} exd4 {[%emt 0:01:10]} 12. cxd4 {[%emt 0:00:01]} Bg4 {[%emt 0:01:16]} 13. f3 {[%emt 0:00:09]} Bf5 {[%emt 0:00:11]} 14. dxc5 {[%emt 0:00:38]} Ndb4 {[%emt 0:01:09]} 15. Nxb4 {[%emt 0:00:27]} Nxb4 {[%emt 0:00:14]} 16. Nc3 {[%emt 0:04:21]} Qxd1 {[%emt 0:01:34]} 17. Rxd1 {[%emt 0:00:01]} Nc2 {[%emt 0:00:23]} 18. Rb1 {[%emt 0:00:09]} Ne1 {[%emt 0:00:43]} 19. Ra1 {[%emt 0:01:56]} Nc2 {[%emt 0:00:26]} 20. Rb1 {[%emt 0:00:01]} Bd4+ {[%emt 0:02:49]} 21. Kh1 {[%emt 0:00:24]} Bxc5 {[%emt 0:00:44]} 22. Bf4 {[%emt 0:00:45]} Be3 {[%emt 0:00:37]} 23. Ne4 {[%emt 0:02:07]} Bxf4 {[%emt 0:00:06]} 24. gxf4 {[%emt 0:00:06]} Kg7 {[%emt 0:00:13]} 25. Rd2 {[%emt 0:00:09]} Ne3 {[%emt 0:00:07]} 26. Re1 {[%emt 0:00:02]} Nxg2 {[%emt 0:00:25]} 27. Kxg2 {[%emt 0:00:01]} Rad8 {[%emt 0:00:07]} 28. Rxd8 {[%emt 0:00:08]} Rxd8 {[%emt 0:00:01]} 29. Re2 {[%emt 0:00:01]} h5 {[%emt 0:00:20]} 30. Rd2 {[%emt 0:00:22]} Rd7 {[%emt 0:00:55]} 31. Rxd7 {[%emt 0:00:07]} Bxd7 {[%emt 0:00:01]} 32. Kf2 {[%emt 0:00:02]} Bc6 {[%emt 0:00:07]} 33. Ke3 {[%emt 0:00:10]} Kf8 {[%emt 0:00:05]} 34. h4 {[%emt 0:00:03]} Ke7 {[%emt 0:00:02]} 35. Nc5 {[%emt 0:00:05]} Kd6 {[%emt 0:00:08]} 36. Nd3 {[%emt 0:00:03]} Ke6 {[%emt 0:00:08]} 37. Nf2 {[%emt 0:00:07]} f6 {[%emt 0:00:04]} 38. Nh1 {[%emt 0:00:12]} g5 {[%emt 0:00:16]} 39. fxg5 {[%emt 0:00:01]} fxg5 {[%emt 0:00:00]} 40. hxg5 {[%emt 0:00:08]} Kf5 {[%emt 0:00:01]} 41. g6 {[%emt 0:00:03]} Kxg6 {[%emt 0:00:03]} 42. Kf4 {[%emt 0:00:01]} Bd7 {[%emt 0:00:17]} 43. a3 {[%emt 0:00:02]} h4 {[%emt 0:00:06]} 44. Nf2 {[%emt 0:00:01]} Kf6 {[%emt 0:00:16]} 45. Ne4+ {[%emt 0:00:02]} Kg6 {[%emt 0:00:02]} 46. Nf2 {[%emt 0:00:08]} Kf6 {[%emt 0:00:02]} 47. Ne4+ {[%emt 0:00:18]} Kg6 {[%emt 0:00:00]} 48. Nf2 {[%emt 0:00:00]} b6 {[%emt 0:00:02]} 49. Ne4 {[%emt 0:00:00]} a5 {[%emt 0:00:14]} 50. b4 {[%emt 0:00:00]} a4 {[%emt 0:00:03]} 51. Nc3 {[%emt 0:00:00]} b5 {[%emt 0:00:11]} 52. Ne4 {[%emt 0:00:00]} h3 {[%emt 0:00:10]} 53. Kg3 {[%emt 0:00:09]} 1-0

[Event "ESP-ch Rapid 2018"]
[Site "Linares"]
[Date "2018.08.19"]
[Round "7"]
[White "Blanco Acevedo, Cristobal Jose"]
[Black "Santos Latasa, Jaime"]
[Result "0-1"]
[ECO "A36"]
[WhiteElo "2336"]
[BlackElo "2582"]
[Annotator "ChessBase"]
[PlyCount "102"]
[EventDate "2018.08.19"]
[EventType "team-tourn"]
[EventCountry "ESP"]
[SourceTitle "playchess.com"]
[Source "ChessBase"]
[SourceQuality "1"]
[TimeControl "900+5"]

1. g3 {[%emt 0:00:00]} c5 {[%emt 0:00:05]} 2. Bg2 {[%emt 0:00:00]} Nc6 {[%emt 0:00:01]} 3. c4 {[%emt 0:00:08]} g6 {[%emt 0:00:03]} 4. Nc3 {[%emt 0:00:25]} Bg7 {[%emt 0:00:01]} 5. e4 {[%emt 0:00:11]} d6 {[%emt 0:00:04]} 6. h3 {[%emt 0:00:07]} Nf6 {[%emt 0:00:21]} 7. Nge2 {[%emt 0:00:09]} O-O {[%emt 0:00:04]} 8. O-O {[%emt 0:00:05]} a6 {[%emt 0:00:01]} 9. d3 {[%emt 0:00:21]} Rb8 {[%emt 0:00:03]} 10. a4 {[%emt 0:00:01]} Nd7 {[%emt 0:00:09]} 11. Be3 {[%emt 0:00:11]} Nd4 {[%emt 0:00:07]} 12. f4 {[%emt 0:00:41]} e6 {[%emt 0:00:04]} 13. g4 {[%emt 0:00:31]} b6 {[%emt 0:00:27]} 14. Rb1 {[%emt 0:01:46]} Bb7 {[%emt 0:00:02]} 15. b4 {[%emt 0:00:09]} f5 {[%emt 0:00:03]} 16. b5 {[%emt 0:00:08]} axb5 {[%emt 0:00:06]} 17. Nxb5 {[%emt 0:00:19]} Nxb5 {[%emt 0:00:07]} 18. cxb5 {[%emt 0:01:04]} d5 {[%emt 0:00:18]} 19. e5 {[%emt 0:00:20]} d4 {[%emt 0:00:09]} 20. Bd2 {[%emt 0:01:06]} Bxg2 {[%emt 0:00:30]} 21. Kxg2 {[%emt 0:00:01]} Qc7 {[%emt 0:00:16]} 22. g5 {[%emt 0:00:52]} h6 {[%emt 0:00:44]} 23. h4 {[%emt 0:00:44]} Qb7+ {[%emt 0:00:01]} 24. Kf2 {[%emt 0:00:33]} hxg5 {[%emt 0:00:44]} 25. hxg5 {[%emt 0:00:01]} Kf7 {[%emt 0:00:02]} 26. Rh1 {[%emt 0:00:39]} Rh8 {[%emt 0:00:03]} 27. Ng3 {[%emt 0:01:18]} Bxe5 {[%emt 0:00:49]} 28. fxe5 {[%emt 0:00:51]} Nxe5 {[%emt 0:00:02]} 29. Qe2 {[%emt 0:00:35]} Ng4+ {[%emt 0:00:17]} 30. Kg1 {[%emt 0:00:02]} Rxh1+ {[%emt 0:00:02]} 31. Nxh1 {[%emt 0:00:05]} Rh8 {[%emt 0:00:02]} 32. Qg2 {[%emt 0:00:41]} Qxg2+ {[%emt 0:00:29]} 33. Kxg2 {[%emt 0:00:03]} Rh2+ {[%emt 0:00:02]} 34. Kg1 {[%emt 0:00:01]} Rxd2 {[%emt 0:00:03]} 35. a5 {[%emt 0:00:01]} Ke7 {[%emt 0:00:31]} 36. axb6 {[%emt 0:00:17]} Kd6 {[%emt 0:00:06]} 37. Ra1 {[%emt 0:00:30]} Rb2 {[%emt 0:00:06]} 38. Ra6 {[%emt 0:00:06]} Rxb5 {[%emt 0:00:09]} 39. b7+ {[%emt 0:00:02]} Kd5 {[%emt 0:00:17]} 40. Ra7 {[%emt 0:00:03]} Ne5 {[%emt 0:00:36]} 41. Nf2 {[%emt 0:00:10]} Nc6 {[%emt 0:00:02]} 42. b8=Q Rxb8 {[%emt 0:00:32]} 43. Rd7+ {[%emt 0:00:29]} Ke5 {[%emt 0:00:01]} 44. Kg2 {[%emt 0:00:01]} Rb3 {[%emt 0:01:08]} 45. Rg7 {[%emt 0:00:08]} Nb4 {[%emt 0:00:10]} 46. Rxg6 {[%emt 0:01:18]} Nxd3 {[%emt 0:00:02]} 47. Nxd3+ {[%emt 0:00:01]} Rxd3 {[%emt 0:00:04]} 48. Rg8 {[%emt 0:00:01]} c4 {[%emt 0:00:15]} 49. Kf2 {[%emt 0:00:04]} c3 {[%emt 0:00:04]} 50. Rc8 {[%emt 0:00:06]} Kf4 {[%emt 0:00:05]} 51. g6 {[%emt 0:00:27]} Rg3 {[%emt 0:00:06]} 0-1